bitfinex-derivatives/quotes_BTCF0:USTF0_20250127
["timestamp","ask_amount","ask_price","bid_price","bid_amount"]
[1737976511042,0.202738,98704.0,98702.0,0.00015196]
[1737976511242,0.202738,98704.0,98702.0,0.20288996]
[1737976512247,0.202738,98704.0,98702.0,0.00015196]
[1737976513148,0.202738,98704.0,98702.0,0.00115196]
[1737976513343,0.206738,98704.0,98702.0,0.00115196]
[1737976513552,0.206738,98704.0,98702.0,0.20389196]
[1737976513740,0.004,98704.0,98702.0,0.20389196]
[1737976513940,0.36148,98710.0,98709.0,0.202726]
[1737976514141,0.00152026,98716.0,98704.0,0.3608]
[1737976514356,0.00152026,98716.0,98715.0,0.202714]
[1737976514550,0.00152026,98716.0,98704.0,0.3608]
[1737976514745,0.202725,98710.0,98708.0,0.202727]
[1737976516252,0.00152026,98716.0,98714.0,0.202715]
[1737976516253,0.20423326,98716.0,98714.0,0.202715]
[1737976516554,0.00152026,98716.0,98715.0,0.3618]
[1737976516943,0.00152026,98716.0,98715.0,0.001]
[1737976517348,0.00252026,98716.0,98714.0,0.202715]
[1737976517553,0.202728,98709.0,98708.0,0.202726]
[1737976517745,0.202716,98714.0,98713.0,0.202714]
[1737976517951,0.202727,98709.0,98708.0,0.202727]
[1737976518751,0.563517,98714.0,98713.0,0.202718]
[1737976518951,0.202717,98714.0,98713.0,0.202718]
[1737976519653,0.001,98709.0,98702.0,0.00015196]
[1737976519862,0.202739,98703.0,98702.0,0.00015196]
[1737976520249,0.202718,98713.0,98712.0,0.202719]
[1737976521758,0.36448,98714.0,98713.0,0.202718]
[1737976521954,0.003,98714.0,98713.0,0.202718]
[1737976522456,0.00152026,98716.0,98710.0,0.3608]
[1737976522652,0.00152026,98716.0,98715.0,0.202714]
[1737976523955,0.00252026,98716.0,98715.0,0.202714]
[1737976524353,0.00152026,98716.0,98715.0,0.202714]
[1737976524561,0.00252026,98716.0,98715.0,0.202714]
[1737976524855,0.202726,98711.0,98710.0,0.202723]
[1737976525074,0.202738,98703.0,98702.0,0.00015196]
[1737976525863,0.202738,98703.0,98702.0,0.20289196]
[1737976526661,0.203738,98703.0,98702.0,0.20289196]
[1737976526962,0.203738,98703.0,98702.0,0.00015196]
[1737976527960,0.203738,98703.0,98702.0,0.20289196]
[1737976528156,0.203738,98703.0,98702.0,0.00015196]
[1737976528957,0.203738,98703.0,98702.0,0.20289196]
[1737976529160,0.001,98703.0,98702.0,0.20289196]
[1737976529657,0.001,98703.0,98702.0,0.63289196]
[1737976529866,0.001,98703.0,98702.0,0.75359024]
[1737976530048,0.00152026,98716.0,98715.0,0.202714]
[1737976530257,0.20423226,98716.0,98715.0,0.202714]
[1737976531464,0.20623226,98716.0,98715.0,0.202714]
[1737976531658,0.00352026,98716.0,98705.0,0.43056]
[1737976531859,0.202726,98711.0,98710.0,0.202723]
[1737976532162,0.202732,98706.0,98705.0,0.203333]
[1737976532362,0.202732,98706.0,98705.0,0.202733]
[1737976532754,0.202738,98703.0,98702.0,0.00015196]
[1737976534359,0.202755,98695.0,98694.0,0.0015198]
[1737976534568,0.563555,98695.0,98694.0,0.0015198]
[1737976535467,0.202761,98692.0,98691.0,0.1815282]
[1737976535657,0.3608,98692.0,98686.0,0.24109098]
[1737976535859,0.202784,98681.0,98664.0,0.00152026]
[1737976536059,0.563584,98681.0,98664.0,0.00152026]
[1737976536659,0.563584,98681.0,98670.0,0.202804]
[1737976536866,0.3628,98692.0,98670.0,0.18813709]
[1737976537168,0.202774,98687.0,98686.0,0.202771]
[1737976537359,0.00015196,98690.0,98689.0,0.202767]
[1737976537771,0.20291696,98690.0,98689.0,0.202767]
[1737976538360,0.00015196,98690.0,98689.0,0.202767]
[1737976538962,0.00115196,98690.0,98689.0,0.632767]
[1737976539568,0.71307519,98703.0,98702.0,0.20274]
[1737976539768,0.71239519,98703.0,98702.0,0.20274]
[1737976540164,0.202742,98703.0,98702.0,0.20274]
[1737976540466,0.3608,98714.0,98692.0,0.3608]
[1737976540656,0.202755,98696.0,98693.0,0.00015196]
[1737976540862,0.202755,98695.0,98693.0,0.00015196]
[1737976541265,0.050685,98702.0,98693.0,0.00015196]
[1737976541461,0.202757,98694.0,98693.0,0.00015196]
[1737976542870,0.563557,98694.0,98693.0,0.00015196]
[1737976543178,0.202814,98666.0,98665.0,0.1075]
[1737976545874,0.203814,98666.0,98665.0,0.1085]
[1737976547574,0.564614,98666.0,98665.0,0.001]
[1737976555275,0.564614,98666.0,98656.0,0.00015196]
[1737976555276,0.202831,98657.0,98656.0,0.00015196]
[1737976555476,0.563631,98657.0,98656.0,0.00015196]
[1737976556385,0.202831,98657.0,98656.0,0.00015196]
[1737976556975,0.202831,98657.0,98656.0,0.00115196]
[1737976557783,0.36148,98666.0,98656.0,0.00115196]
[1737976557978,0.3608,98674.0,98656.0,0.00115196]
[1737976558176,0.3608,98674.0,98673.0,0.202797]
[1737976560288,0.3608,98674.0,98666.0,0.2251]
[1737976560489,0.202796,98674.0,98673.0,0.202798]
[1737976560692,0.00015196,98675.0,98674.0,0.202796]
[1737976560987,0.00015196,98675.0,98674.0,0.317696]
[1737976561796,0.20294596,98675.0,98674.0,0.317696]
[1737976562288,0.36095196,98675.0,98638.0,0.3608]
[1737976562483,0.563631,98657.0,98640.0,0.00996876]
[1737976562687,0.202831,98657.0,98640.0,0.00996876]
[1737976563391,0.202831,98657.0,98643.0,0.202858]
[1737976563580,0.202831,98657.0,98640.0,0.00996876]
[1737976563894,0.202846,98650.0,98635.0,0.1115]
[1737976564187,0.563646,98650.0,98635.0,0.1115]
[1737976564385,0.563646,98650.0,98634.0,0.30082433]
[1737976564386,0.3608,98650.0,98634.0,0.30082433]
[1737976564694,0.563677,98635.0,98634.0,0.30082433]
[1737976566378,0.202881,98633.0,98632.0,0.00010291]
[1737976566594,0.202922,98614.0,98612.0,0.202924]
[1737976567793,0.203922,98614.0,98607.0,0.41564433]
[1737976567984,0.203922,98614.0,98613.0,0.202922]
[1737976569198,0.204922,98614.0,98613.0,0.202922]
[1737976569889,0.203922,98614.0,98613.0,0.203922]
[1737976570289,0.001,98614.0,98613.0,0.203922]
[1737976570486,0.00015204,98623.0,98622.0,0.202903]
[1737976570691,0.3608,98647.0,98622.0,0.050725]
[1737976570894,0.11991124,98644.0,98634.0,0.3608]
[1737976571090,0.11991124,98644.0,98643.0,0.20286]
[1737976571484,0.36148,98647.0,98646.0,0.202854]
[1737976571485,0.00068,98647.0,98646.0,0.202854]
[1737976571689,0.14885319,98652.0,98651.0,0.202843]
[1737976571895,0.18813709,98700.0,98651.0,0.202843]
[1737976571896,0.00068,98664.0,98658.0,0.202829]
[1737976572194,0.202807,98669.0,98668.0,0.202807]
[1737976572397,0.202813,98666.0,98665.0,0.3608]
[1737976572696,0.01019844,98680.0,98657.0,0.202829]
[1737976572697,0.202829,98658.0,98657.0,0.202829]
[1737976573101,0.00015204,98667.0,98653.0,0.3706855]
[1737976573299,0.002,98659.0,98653.0,0.3706855]
[1737976573496,0.002,98659.0,98658.0,0.202829]
[1737976573998,0.204827,98659.0,98658.0,0.202829]
[1737976574794,0.204827,98659.0,98653.0,0.3706855]
[1737976574795,0.202837,98654.0,98653.0,0.5735245]
[1737976574995,0.202837,98654.0,98638.0,0.00152061]
[1737976574996,0.202848,98649.0,98647.0,0.20285]
[1737976575198,0.003,98659.0,98653.0,0.202838]
[1737976575199,0.202839,98654.0,98653.0,0.202838]
[1737976575400,0.001,98659.0,98653.0,0.3608]
[1737976575595,0.050684,98702.0,98659.0,0.050706]
[1737976575896,0.202772,98686.0,98685.0,0.202772]
[1737976576197,0.3608,98698.0,98687.0,0.202769]
[1737976576396,0.20428761,98688.0,98687.0,0.202769]
[1737976576597,0.00152061,98688.0,98687.0,0.202769]
[1737976577594,0.202774,98685.0,98684.0,0.3608]
[1737976578103,0.00152061,98688.0,98687.0,0.202769]
[1737976578694,0.202751,98696.0,98695.0,0.202753]
[1737976580096,0.203751,98696.0,98695.0,0.202753]
[1737976580404,0.001,98696.0,98695.0,0.202753]
[1737976580990,0.00152017,98716.0,98715.0,0.202712]
[1737976581393,0.56987447,98738.0,98737.0,0.202667]
[1737976581703,0.20839447,98738.0,98737.0,0.202667]
[1737976581904,0.20839447,98738.0,98737.0,0.563467]
[1737976582997,0.21239447,98738.0,98737.0,0.563467]
[1737976583207,0.21739447,98738.0,98731.0,0.202679]
[1737976583391,0.202674,98734.0,98731.0,0.202679]
[1737976583595,0.202677,98733.0,98731.0,0.202679]
[1737976583802,0.009,98738.0,98729.0,0.3608]
[1737976583998,0.202681,98731.0,98729.0,0.3608]
[1737976584807,0.202681,98731.0,98729.0,0.563482]
[1737976585198,0.202681,98731.0,98728.0,0.00015195]
[1737976585199,0.202683,98729.0,98728.0,0.00015195]
[1737976586203,0.003,98731.0,98729.0,0.202683]
[1737976586405,0.002,98729.0,98728.0,0.00015195]
[1737976586706,0.002,98729.0,98728.0,0.20283695]
[1737976587098,0.002,98729.0,98728.0,0.63283695]
[1737976587402,0.002,98729.0,98728.0,0.20283695]
[1737976588501,0.03038282,98740.0,98728.0,0.00015195]
[1737976588700,0.03038282,98740.0,98739.0,0.563463]
[1737976589121,0.03038282,98740.0,98739.0,0.993463]
[1737976589409,0.03038282,98740.0,98739.0,0.563463]
[1737976589595,0.03338282,98740.0,98739.0,0.563463]
[1737976589797,0.3608,98766.0,98739.0,0.7908]
[1737976590111,0.3608,98766.0,98757.0,0.563426]
[1737976591306,0.3608,98766.0,98757.0,0.3608]
[1737976591508,0.202626,98757.0,98749.0,0.1182]
[1737976591716,0.3608,98766.0,98755.0,0.202629]
[1737976591717,0.202629,98756.0,98755.0,0.202629]
[1737976592317,0.00551954,98758.0,98749.0,0.1182]
[1737976592507,0.00751954,98758.0,98757.0,0.202626]
[1737976592708,0.4692,98785.0,98778.0,0.202582]
[1737976592709,0.202573,98783.0,98778.0,0.202582]
[1737976592902,0.202573,98783.0,98777.0,0.202584]
[1737976593107,0.202573,98783.0,98779.0,0.20258]
[1737976593308,0.202573,98783.0,98781.0,0.202576]
[1737976594511,0.202587,98777.0,98774.0,0.20259]
[1737976594711,0.202592,98774.0,98772.0,0.00015187]
[1737976595413,0.202592,98774.0,98772.0,0.20274687]
[1737976595717,0.202578,98781.0,98776.0,0.202587]
[1737976595918,0.001,98777.0,98776.0,0.202587]
[1737976596215,0.001,98777.0,98776.0,0.563387]
[1737976596412,0.202584,98778.0,98776.0,0.563387]
[1737976596604,0.03036959,98783.0,98780.0,0.202578]
[1737976597417,0.03036959,98783.0,98776.0,0.3608]
[1737976597609,0.23294359,98783.0,98781.0,0.202576]
[1737976598011,0.03036959,98783.0,98781.0,0.202576]
[1737976598810,0.03236959,98783.0,98781.0,0.202576]
[1737976599612,0.03136959,98783.0,98781.0,0.202576]
[1737976599917,0.03236959,98783.0,98782.0,0.01555639]
[1737976600314,0.03236959,98783.0,98782.0,0.01556944]
[1737976600618,6.098e-05,98792.0,98791.0,0.202556]
[1737976600810,6.098e-05,98792.0,98791.0,0.57892544]
[1737976603119,0.00151849,98823.0,98822.0,0.202493]
[1737976603608,0.00151849,98823.0,98822.0,0.01582231]
[1737976603813,0.00151849,98823.0,98815.0,0.563306]
[1737976604015,0.2025,98819.0,98816.0,0.01582286]
[1737976604312,0.00151849,98823.0,98820.0,0.202497]
[1737976604513,0.20401149,98823.0,98821.0,0.01582284]
[1737976604713,0.20401149,98823.0,98822.0,0.01582284]
[1737976604915,0.20401149,98823.0,98821.0,0.202495]
[1737976605107,0.00151849,98823.0,98822.0,0.01582283]
[1737976605916,0.01551849,98823.0,98821.0,0.203495]
[1737976606120,0.01551849,98823.0,98822.0,0.01572794]
[1737976606527,0.00651849,98823.0,98822.0,0.01572794]
[1737976606823,0.01551849,98823.0,98817.0,0.00999307]
[1737976607124,0.01551849,98823.0,98815.0,0.3608]
[1737976607521,0.01551849,98823.0,98815.0,0.37086786]
[1737976607720,0.01551849,98823.0,98821.0,0.202495]
[1737976607913,0.01051849,98823.0,98821.0,0.202495]
[1737976608226,0.01551849,98823.0,98821.0,0.202495]
[1737976608418,0.00651849,98823.0,98821.0,0.202495]
[1737976608722,0.01551849,98823.0,98822.0,0.001]
[1737976609116,0.01551849,98823.0,98821.0,0.203495]
[1737976609414,0.013,98823.0,98821.0,0.203495]
[1737976609727,0.050604,98859.0,98822.0,0.05948379]
[1737976609728,0.202434,98851.0,98822.0,0.05948379]
[1737976609919,0.11911806,98852.0,98851.0,0.202434]
[1737976610320,0.47888,98859.0,98851.0,0.202434]
[1737976610321,0.36148,98859.0,98851.0,0.632434]
[1737976611029,0.36148,98859.0,98846.0,0.3608]
[1737976611319,0.202451,98843.0,98842.0,0.00015179]
[1737976612518,0.206451,98843.0,98842.0,0.00015179]
[1737976613520,0.215451,98843.0,98842.0,0.00115179]
[1737976613723,0.215451,98843.0,98842.0,0.04666697]
[1737976613922,0.013,98843.0,98842.0,0.04666697]
[1737976614511,0.013,98843.0,98842.0,0.36195179]
[1737976615218,0.013,98843.0,98842.0,0.40646594]
[1737976615420,0.013,98843.0,98842.0,0.36195179]
[1737976615616,0.012,98843.0,98842.0,0.36195179]
[1737976615817,0.012,98843.0,98842.0,0.40646619]
[1737976618124,0.011,98843.0,98842.0,0.40646619]
[1737976618330,0.33872009,98900.0,98842.0,0.81976619]
[1737976618331,0.3608,98880.0,98842.0,0.81976619]
[1737976618522,0.202393,98871.0,98869.0,0.202396]
[1737976619121,0.202393,98871.0,98870.0,0.01568896]
[1737976620020,0.209393,98871.0,98870.0,0.01568896]
[1737976621121,0.212393,98871.0,98869.0,0.203396]
[1737976621719,0.202395,98870.0,98869.0,0.001]
[1737976621917,0.202406,98865.0,98860.0,0.18813709]
[1737976622120,0.202406,98865.0,98864.0,0.202405]
[1737976623132,0.202424,98856.0,98855.0,0.3608]
[1737976623324,0.12650457,98856.0,98855.0,0.3608]
[1737976623639,0.202451,98843.0,98842.0,0.00218934]
[1737976623824,0.563251,98843.0,98842.0,0.00166934]
[1737976624023,0.3608,98843.0,98832.0,0.3608]
[1737976624321,0.2025,98819.0,98818.0,0.3614]
[1737976624525,0.2025,98819.0,98818.0,0.41560032]
[1737976624833,0.2025,98819.0,98818.0,0.41500032]
[1737976625129,0.2025,98819.0,98818.0,0.04395542]
[1737976625529,0.20251,98814.0,98813.0,0.05635195]
[1737976625731,0.202539,98800.0,98799.0,0.36224437]
[1737976625923,0.563339,98800.0,98799.0,0.36224437]
[1737976626525,0.202567,98786.0,98779.0,0.202581]
[1737976626821,0.202567,98786.0,98785.0,0.04407164]
[1737976627022,0.3608,98800.0,98785.0,0.40487164]
[1737976627323,0.202559,98792.0,98791.0,0.202557]
[1737976627518,0.00015179,98795.0,98791.0,0.04400003]
[1737976627731,0.00015179,98795.0,98794.0,0.202551]
[1737976627934,0.00015179,98795.0,98794.0,0.24655103]
[1737976628523,0.00015179,98795.0,98794.0,0.21618236]
[1737976628725,0.00015179,98795.0,98794.0,0.57698236]
[1737976628926,0.18813709,98840.0,98794.0,0.57698236]
[1737976628927,0.202481,98829.0,98827.0,0.202483]
[1737976629129,0.202476,98831.0,98829.0,0.202479]
[1737976629325,0.3608,98841.0,98828.0,0.04114744]
[1737976629326,0.3608,98841.0,98830.0,0.04114744]
[1737976629629,0.3608,98841.0,98840.0,0.43]
[1737976629834,0.3608,98841.0,98840.0,0.4711333]
[1737976630025,0.3608,98841.0,98840.0,0.4458205]
[1737976630337,0.3608,98841.0,98840.0,0.0158205]
[1737976631128,0.36097018,98841.0,98840.0,0.0158205]
[1737976631633,0.00015153,98850.0,98849.0,0.202438]
[1737976631828,0.20117338,98858.0,98857.0,0.202422]
[1737976632028,0.20117338,98858.0,98857.0,0.21823418]
[1737976633133,0.20217338,98858.0,98857.0,0.26177534]
[1737976633330,0.02317338,98858.0,98857.0,0.26177534]
[1737976633535,0.00151792,98878.0,98857.0,0.05935334]
[1737976633723,0.00151792,98878.0,98877.0,0.202381]
[1737976634534,0.17681592,98883.0,98882.0,0.202371]
[1737976634741,0.36148,98896.0,98895.0,0.202344]
[1737976634930,0.1091,98918.0,98899.0,0.202336]
[1737976635131,0.202306,98914.0,98899.0,0.563136]
[1737976635326,0.3608,98910.0,98899.0,0.202336]
[1737976635531,0.1091,98918.0,98899.0,0.202336]
[1737976635926,0.00151726,98919.0,98899.0,0.202336]
[1737976636126,0.00151726,98919.0,98899.0,0.24584249]
[1737976636342,0.00151726,98919.0,98918.0,0.202297]
[1737976636542,0.59968511,98929.0,98921.0,0.202291]
[1737976636936,0.59968511,98929.0,98921.0,0.632291]
[1737976638034,0.09016858,98926.0,98925.0,0.202283]
[1737976639642,0.09316858,98926.0,98925.0,0.203283]
[1737976640342,0.44188973,98962.0,98925.0,0.3618]
[1737976640539,0.44188973,98962.0,98954.0,0.202223]
[1737976640540,0.23968173,98962.0,98954.0,0.202223]
[1737976641242,0.18438646,98956.0,98954.0,0.202223]
[1737976641432,0.007,98956.0,98948.0,0.3608]
[1737976641640,0.007,98956.0,98955.0,0.202222]
[1737976642237,0.00151662,98962.0,98955.0,0.0153789]
[1737976642437,0.00151662,98962.0,98959.0,0.3608]
[1737976642638,0.11983568,98967.0,98966.0,0.202199]
[1737976643146,0.11983568,98967.0,98966.0,0.21760872]
[1737976643341,0.11983568,98967.0,98966.0,0.202199]
[1737976644237,0.04400833,98967.0,98966.0,0.202199]
[1737976645039,0.04500833,98967.0,98966.0,0.202199]
[1737976645843,0.04400833,98967.0,98966.0,0.204199]
[1737976646044,0.04400833,98967.0,98966.0,0.207199]
[1737976646245,0.3608,98977.0,98966.0,0.005]
[1737976646448,0.202192,98970.0,98966.0,0.005]
[1737976646934,0.562997,98967.0,98966.0,0.005]
[1737976647644,0.562997,98967.0,98966.0,0.004]
[1737976648240,0.3608,98967.0,98944.0,0.00151594]
[1737976648436,0.202242,98945.0,98944.0,0.00151594]
[1737976648648,0.202277,98928.0,98910.0,0.3608]
[1737976648847,0.202277,98928.0,98912.0,0.21263518]
[1737976648848,0.563077,98928.0,98912.0,0.21263518]
[1737976649037,0.563077,98928.0,98912.0,0.01032718]
[1737976649255,0.563077,98928.0,98923.0,0.202286]
[1737976649452,0.563077,98928.0,98912.0,0.01032718]
[1737976649665,0.563077,98928.0,98918.0,0.00015163]
[1737976650264,0.563077,98928.0,98927.0,0.00312487]
[1737976650762,0.563077,98928.0,98927.0,0.00512487]
[1737976651161,0.202295,98919.0,98918.0,0.00015163]
[1737976651354,0.563095,98919.0,98918.0,0.00015163]
[1737976652254,0.202322,98906.0,98892.0,0.01030185]
[1737976652457,0.563122,98906.0,98892.0,0.01030185]
[1737976653165,0.563122,98906.0,98882.0,0.3608]
[1737976653349,0.563122,98906.0,98900.0,0.202333]
[1737976653555,0.563122,98906.0,98903.0,0.202327]
[1737976654059,0.565122,98906.0,98904.0,0.202324]
[1737976654455,0.204322,98906.0,98904.0,0.202324]
[1737976655064,0.204322,98906.0,98905.0,0.00251639]
[1737976655555,0.002,98906.0,98905.0,0.00251639]
[1737976655758,0.001,98906.0,98905.0,0.20384039]
[1737976655962,0.001,98906.0,98905.0,0.20484039]
[1737976656358,0.20245663,98915.0,98912.0,0.202309]
[1737976656765,0.20245663,98915.0,98905.0,0.43251639]
[1737976656766,0.20245663,98915.0,98913.0,0.202307]
[1737976656967,0.00015163,98915.0,98913.0,0.202307]
[1737976657368,0.00015163,98915.0,98914.0,0.01580829]
[1737976657867,0.20245563,98915.0,98914.0,0.01580829]
[1737976658064,0.00015163,98915.0,98914.0,0.01580829]
[1737976658866,0.20545563,98915.0,98914.0,0.01580829]
[1737976659267,0.20245563,98915.0,98914.0,0.01580829]
[1737976659466,0.20245563,98915.0,98914.0,0.01780829]
[1737976660070,0.20245563,98915.0,98914.0,0.01580829]
[1737976660466,0.20245563,98915.0,98914.0,0.0158093]
[1737976660665,0.20245563,98915.0,98914.0,0.0168093]
[1737976660876,0.20245563,98915.0,98914.0,0.0198093]
[1737976661668,0.20245563,98915.0,98914.0,0.0178093]
[1737976662270,0.202322,98906.0,98905.0,0.00151639]
[1737976663767,0.202322,98906.0,98905.0,0.00251639]
[1737976663980,0.202309,98913.0,98911.0,0.202311]
[1737976664673,0.00015163,98915.0,98914.0,0.202305]
[1737976665978,0.00015163,98915.0,98911.0,0.001]
[1737976665979,0.20231,98912.0,98911.0,0.001]
[1737976666269,0.20231,98912.0,98911.0,0.003]
[1737976666470,0.00015163,98915.0,98914.0,0.202306]
[1737976666867,0.00015163,98915.0,98914.0,0.203306]
[1737976667265,0.00015163,98915.0,98914.0,0.204306]
[1737976667461,0.00015163,98915.0,98914.0,0.203306]
[1737976669370,0.00015163,98915.0,98914.0,0.204306]
[1737976669968,0.00015163,98915.0,98914.0,0.21435585]
[1737976670377,0.00015163,98915.0,98914.0,0.21535585]
[1737976671074,0.3608,98929.0,98914.0,0.01304985]
[1737976671270,0.202283,98925.0,98924.0,0.20228]
[1737976671579,0.202295,98920.0,98919.0,0.202295]
[1737976671774,0.202303,98915.0,98914.0,0.01304985]
[1737976672168,0.202303,98915.0,98914.0,0.21535485]
[1737976672480,0.202303,98915.0,98914.0,0.21435485]
[1737976673180,0.202294,98920.0,98919.0,0.202289]
[1737976674275,0.202303,98915.0,98914.0,0.21335485]
[1737976674976,0.202303,98915.0,98914.0,0.21235485]
[1737976675776,0.202294,98920.0,98919.0,0.202287]
[1737976676079,0.20243709,98924.0,98923.0,0.202287]
[1737976676584,0.00015109,98924.0,98923.0,0.202287]
[1737976676874,0.001326,98932.0,98931.0,0.202271]
[1737976677072,0.3608,98938.0,98929.0,0.3608]
[1737976677273,0.3608,98948.0,98947.0,0.202238]
[1737976677775,0.15043967,98955.0,98954.0,0.202224]
[1737976678584,0.12220656,98962.0,98961.0,0.20221]
[1737976678885,0.3608,98987.0,98971.0,0.202189]
[1737976679181,0.202159,98986.0,98971.0,0.562989]
[1737976679776,0.4114906,98983.0,98971.0,0.562989]
[1737976680185,0.3608,98979.0,98971.0,0.202189]
[1737976680379,0.202185,98973.0,98971.0,0.202189]
[1737976680579,0.0065164,98972.0,98971.0,0.203189]
[1737976680785,0.0065164,98972.0,98971.0,0.563989]
[1737976681890,0.0095164,98972.0,98971.0,0.5742917]
[1737976682689,0.008,98972.0,98971.0,0.5742917]
[1737976682905,0.3608,98987.0,98986.0,0.202159]
[1737976683188,0.562957,98987.0,98986.0,0.202159]
[1737976683986,0.3608,98999.0,98998.0,0.202134]
[1737976684788,0.562932,98999.0,98998.0,0.202134]
[1737976685382,0.3668,98999.0,98998.0,0.202134]
[1737976686085,0.3668,98999.0,98998.0,0.203134]
[1737976686777,0.006,98999.0,98998.0,0.563934]
[1737976686992,0.0015157,99015.0,98998.0,0.6716413]
[1737976687184,0.3608,99026.0,99012.0,0.3608]
[1737976687386,0.3608,99026.0,99025.0,0.202079]
[1737976688288,0.3608,99039.0,99038.0,0.202053]
[1737976689787,0.3618,99039.0,99038.0,0.203053]
[1737976690290,0.001,99039.0,99038.0,0.203053]
[1737976690491,0.3608,99050.0,99049.0,0.20203]
[1737976690887,0.3608,99068.0,99049.0,0.3608]
[1737976691191,0.3608,99068.0,99066.0,0.201996]
[1737976691592,0.3608,99079.0,99075.0,0.201977]
[1737976692185,0.3608,99093.0,99075.0,0.201977]
[1737976692388,0.00625622,99076.0,99075.0,0.562777]
[1737976692595,0.00625622,99076.0,99075.0,0.862777]
[1737976692798,0.3608,99093.0,99081.0,0.201965]
[1737976693288,0.3608,99093.0,99081.0,0.43]
[1737976693484,0.3608,99093.0,99080.0,0.201965]
[1737976693697,0.201949,99089.0,99080.0,0.201965]
[1737976693897,0.3608,99093.0,99081.0,0.43]
[1737976694101,0.201957,99086.0,99081.0,0.43]
[1737976694299,0.3608,99085.0,99075.0,0.001]
[1737976694599,0.201958,99085.0,99081.0,0.201965]
[1737976694796,0.201972,99078.0,99075.0,0.01506016]
[1737976695000,0.3608,99076.0,99075.0,0.004]
[1737976695296,0.201994,99067.0,99066.0,0.00015146]
[1737976695493,0.3608,99067.0,99046.0,0.00151444]
[1737976695694,0.202034,99047.0,99046.0,0.00151444]
[1737976696591,0.3608,99057.0,99046.0,0.00151444]
[1737976696903,0.00015089,99056.0,99055.0,0.202018]
[1737976697889,0.3608,99087.0,99049.0,0.7216]
[1737976698091,0.36283472,99098.0,99097.0,0.201933]
[1737976698290,0.201946,99091.0,99085.0,0.201957]
[1737976698493,0.201948,99090.0,99085.0,0.201957]
[1737976698706,0.36283472,99098.0,99074.0,0.3608]
[1737976698707,0.3608,99089.0,99074.0,0.3608]
[1737976699001,0.562768,99080.0,99078.0,0.201971]
[1737976699202,0.3608,99089.0,99074.0,0.3608]
[1737976699401,0.3608,99089.0,99079.0,0.32914212]
[1737976699603,0.3608,99089.0,99088.0,0.201951]
[1737976700201,0.201954,99087.0,99081.0,0.201964]
[1737976700403,0.3608,99089.0,99081.0,0.201964]
[1737976700592,0.201961,99083.0,99081.0,0.201964]
[1737976700791,0.3608,99089.0,99087.0,0.201951]
[1737976701198,0.001,99090.0,99089.0,0.201949]
[1737976701694,0.00151471,99098.0,99094.0,0.201937]
[1737976701900,0.201948,99090.0,99088.0,0.53109212]
[1737976702088,0.201967,99081.0,99079.0,0.007]
[1737976703092,0.201981,99073.0,99062.0,0.3608]
[1737976703405,0.3608,99075.0,99046.0,0.00151444]
[1737976703702,0.562808,99060.0,99052.0,0.43]
[1737976703902,0.562808,99060.0,99054.0,0.29819334]
[1737976703903,0.3507352,99060.0,99054.0,0.29819334]
[1737976704299,0.202018,99055.0,99054.0,0.11919334]
[1737976704504,0.202032,99048.0,99047.0,0.00015137]
[1737976704805,0.3608,99048.0,99031.0,0.562867]
[1737976704992,0.20205,99040.0,99036.0,0.202056]
[1737976705198,0.202063,99033.0,99031.0,0.3608]
[1737976705507,0.202063,99033.0,99031.0,0.562866]
[1737976705899,0.202063,99033.0,99032.0,0.17848636]
[1737976706300,0.502063,99033.0,99031.0,0.00056]
[1737976706597,0.502063,99033.0,99004.0,0.3608]
[1737976706598,0.050518,99028.0,99001.0,0.3608]
[1737976706806,0.202126,99002.0,99001.0,0.3608]
[1737976706997,0.35075245,99009.0,99001.0,0.3608]
[1737976707197,0.35075245,99009.0,98995.0,0.29566296]
[1737976707198,0.202138,98996.0,98995.0,0.29566296]
[1737976707389,0.562938,98996.0,98995.0,0.29510296]
[1737976708207,0.00015152,99005.0,98995.0,0.29510296]
[1737976708501,0.00015152,99005.0,99001.0,0.202127]
[1737976708703,0.20213,99001.0,98995.0,0.29510296]
[1737976708903,0.00015152,99005.0,99001.0,0.202127]
[1737976709101,0.00015152,99005.0,99003.0,0.202123]
[1737976709611,0.35075245,99009.0,99008.0,0.202114]
[1737976709800,0.00024523,99032.0,99027.0,0.202074]
[1737976710107,0.00024523,99032.0,99028.0,0.3608]
[1737976710300,0.202071,99030.0,99028.0,0.3608]
[1737976710901,0.00024523,99032.0,99028.0,0.562873]
[1737976711107,0.0045158,99029.0,99028.0,0.562873]
[1737976712508,0.0045158,99029.0,99028.0,0.564873]
[1737976712805,0.0015158,99029.0,99028.0,0.564873]
[1737976713005,0.0045158,99029.0,99028.0,0.002]
[1737976713309,0.2065868,99029.0,99028.0,0.003]
[1737976713509,0.2035868,99029.0,99028.0,0.004]
[1737976714106,0.2085868,99029.0,99028.0,0.003]
[1737976714706,0.0015158,99029.0,99028.0,0.003]
[1737976714905,0.0055158,99029.0,99028.0,0.3648]
[1737976715109,0.0055158,99029.0,99028.0,0.3628]
[1737976716110,0.3055158,99029.0,99028.0,0.3628]
[1737976716413,0.3035158,99029.0,99028.0,0.001]
[1737976717003,0.0015158,99029.0,99028.0,0.001]
[1737976717207,0.202089,99020.0,99019.0,0.00015152]
[1737976717405,0.0045158,99029.0,99001.0,0.312528]
[1737976717406,0.3608,99023.0,99003.0,0.3608]
[1737976717608,0.202122,99004.0,99003.0,0.3608]
[1737976718103,0.202105,99013.0,99006.0,0.202118]
[1737976718303,0.202105,99013.0,99003.0,0.3608]
[1737976718503,0.202112,99010.0,99008.0,0.202113]
[1737976718712,0.00015152,99018.0,99003.0,0.3608]
[1737976718899,0.00015152,99018.0,99016.0,0.3608]
[1737976719103,0.202096,99017.0,99016.0,0.3608]
[1737976719305,0.00015152,99018.0,99016.0,0.3608]
[1737976719499,0.00015152,99018.0,99016.0,0.562897]
[1737976720206,0.00215152,99018.0,99016.0,0.562897]
[1737976720426,0.0015158,99029.0,99028.0,0.202073]